Cogmind - Beta 13 @@@ ROGUE MODE // 2024.04.18 @ 10:47:05 Player: Conlarando Result: Destroyed by S-10 Pest with Light Assault Rifle Performance ------------- Evolutions (0) 0 Regions Visited (4) 800 Robots Destroyed (26) 130 Value Destroyed (617) 617 Prototype IDs (1) 20 Alien Tech Used (0) 0 Bonus (0) 0 TOTAL SCORE: 1567 Bonus ------- None Cogmind --------- Core Integrity 0/250 Matter 157/300 Energy 98/100 System Corruption 0% Temperature Cool (0) Movement Treading (320) Ox2 Location -9/Mines Parts ------- > --- POWER (1) -------- (None) > --- PROPULSION (2) --- Light Treads > --- UTILITY (2) ------ High-capacity Storage Unit Light Armor Plating > --- WEAPON (2) ------- Assault Rifle Assault Rifle > --- INVENTORY (20) --- Ion Engine Flight Unit Flight Unit Small Storage Unit Light Armor Plating Light Armor Plating Light Armor Plating Light Armor Plating Light Armor Plating Light Armor Plating Light Armor Plating Assault Rifle Rocket Launcher Mini Grenade Launcher Peak State ------------ > --- POWER ------------ Ion Engine > --- PROPULSION ------- Wheel Wheel > --- UTILITY ---------- High-capacity Storage Unit Experimental Sensor Array > --- WEAPON ----------- Assault Rifle Assault Rifle > --- INVENTORY -------- Ion Engine Light Treads Light Treads Flight Unit Flight Unit Small Storage Unit Light Armor Plating Light Armor Plating Light Armor Plating Light Armor Plating Light Armor Plating Light Armor Plating Light Armor Plating Assault Rifle Assault Rifle Assault Rifle Assault Rifle Mini Grenade Launcher Mini Grenade Launcher [Rating: 17] Favorites ----------- Power Light Ion Engine Engine Light Ion Engine Propulsion Wheel Treads Light Treads Wheel Wheel Utility High-capacity Storage Unit Device Experimental Sensor Array Storage High-capacity Storage Unit Protection Light Armor Plating Weapon Assault Rifle Energy Gun EM Pulse Gun Ballistic Gun Assault Rifle Special Weapon Mining Laser Build | -11 -10 -10 -10 -9 ------- Run | Yrd Mat Min Exi Min Slots Evolved . | . . . . . Power . | . . . . . Propulsion . | . . . . . Utility . | . . . . . Weapon . | . . . . . Parts Attached 31 | 6 14 2 . 9 Power 2 | 1 1 . . . Engine 2 | 1 1 . . . Core . | . . . . . Reactor . | . . . . . Propulsion 7 | 2 3 . . 2 Treads 4 | 2 . . . 2 Leg . | . . . . . Wheel 3 | . 3 . . . Hover . | . . . . . Flight . | . . . . . Utility 8 | 1 2 2 . 3 Device 1 | . . 1 . . Storage 2 | 1 1 . . . Processor . | . . . . . Hackware . | . . . . . Protection 5 | . 1 1 . 3 Artifact . | . . . . . Weapon 14 | 2 8 . . 4 Energy Gun 4 | . 3 . . 1 Energy Cannon . | . . . . . Ballistic Gun 7 | 2 2 . . 3 Ballistic Cannon . | . . . . . Launcher . | . . . . . Special Weapon 3 | . 3 . . . Impact Weapon . | . . . . . Slashing Weapon . | . . . . . Piercing Weapon . | . . . . . Special Melee Weapon . | . . . . . Unidentified Prototypes 1 | . . 1 . . Parts Lost 8 | . 2 . . 6 Power 2 | . 1 . . 1 Propulsion 3 | . 1 . . 2 Utility . | . . . . . Weapon 3 | . . . . 3 Highest Loss Streak 6 | . 1 . . 6 To Critical Strikes . | . . . . . Average Slot Usage (%) 91 | . 93 96 85 75 Engine 13 | . 13 14 14 3 Treads 1 | . . . . 10 Wheel 26 | . 27 28 28 12 Storage 14 | . 14 14 14 14 Protection 7 | . 8 10 . 9 Energy Gun 10 | . 15 . . 1 Ballistic Gun 17 | . 11 28 28 23 Naked Turns . | . . . . . Heaviest Build 52 | 11 52 52 49 49 Greatest Support 40 | 40 40 20 20 40 Greatest Overweight (x) 4 | 1 2 2 2 4 Average Overweight (x) 1 | . 1 2 2 2 Largest Inventory Capacity 20 | 8 20 20 20 20 Average Capacity 19 | 7 19 20 20 20 Most Carried 20 | 4 20 20 20 20 Average Carried 12 | 2 10 19 20 17 Final Capacity 20 | 8 20 20 20 20 Final Carried 20 | 4 20 20 20 14 Class Distribution -------------------- 100% | Mutant Dominant Class ---------------- Mutant | -10/Materials Mutant | -10/Mines Mutant | -10/Exiles Mutant | -9/Mines Resources | -11 -10 -10 -10 -9 ----------- Run | Yrd Mat Min Exi Min Matter Collected 533 | 260 192 40 . 41 Remotely . | . . . . . Salvage Created 764 | . 573 38 . 153 Parts 45 | . 31 4 . 10 Haulers Intercepted 1 | . 1 . . . Recyclers Shooed . | . . . . . Parts Field Recycled . | . . . . . Retrieved Matter . | . . . . . Parts Self-Destructed . | . . . . . Prevented . | . . . . . Kills | -11 -10 -10 -10 -9 ------- Run | Yrd Mat Min Exi Min Combat Hostiles Destroyed 22 | . 15 3 . 4 Guns 14 | . 7 3 . 4 AOE 8 | . 8 . . . Classes Destroyed 5 | . 4 . . 1 Hauler 1 | . 1 . . . Watcher 3 | . 3 . . . Swarmer 10 | . 6 3 . 1 Grunt 11 | . 9 . . 2 Duelist 1 | . . . . 1 Best Kill Streak 4 | . 4 3 . 2 Combat Bots Only 3 | . 3 3 . 2 Max Kills in Single Turn 3 | . 3 2 . 2 Gunslinging 1 | . . . . 1 Exploded 3 | . 3 . . . Melee . | . . . . . Uniques/NPCs Destroyed . | . . . . . Combat | -11 -10 -10 -10 -9 -------- Run | Yrd Mat Min Exi Min Hostile Shots Fired 134 | . 43 15 . 76 Missed 31 | . 9 5 . 17 Damage Taken 1483 | . 617 77 . 789 Core 253 | . 161 . . 92 Absorbed by Shields . | . . . . . Core Remaining (%) 100 | 100 . . . . Volleys Fired 74 | . 45 5 . 24 Largest 2 | . 2 2 . 2 Hottest 200 | . 200 40 . 60 Shots Fired 143 | . 90 10 . 43 Gun 141 | . 88 10 . 43 Cannon . | . . . . . Launcher . | . . . . . Special 2 | . 2 . . . Kinetic 81 | . 33 10 . 38 Thermal 7 | . 2 . . 5 Explosive . | . . . . . Electromagnetic 55 | . 55 . . . Robot Hit Streak 11 | . 11 3 . 7 Robot Miss Streak 4 | . 4 2 . 3 Penetration Max . | . . . . . Secondary Targets 4 | . . 1 . 3 Max Gunslinging Chain 1 | . . 1 . 1 Shots Hit Robots 89 | . 59 5 . 25 Core Hits 41 | . 28 3 . 10 Critical Kills . | . . . . . Critical Parts Destroyed . | . . . . . Critical Strikes . | . . . . . Melee Attacks . | . . . . . Impact . | . . . . . Slashing . | . . . . . Piercing . | . . . . . Sneak Attacks . | . . . . . Combat Hostiles . | . . . . . Follow-up Attacks . | . . . . . Damage Inflicted 1687 | . 1304 74 . 309 Guns 1151 | . 768 74 . 309 Cannons . | . . . . . Explosions 512 | . 512 . . . Melee . | . . . . . Ramming . | . . . . . Kinetic 563 | . 223 74 . 266 Thermal 579 | . 536 . . 43 Explosive . | . . . . . Electromagnetic 545 | . 545 . . . Impact . | . . . . . Slashing . | . . . . . Piercing . | . . . . . Highest Corruption . | . . . . . Average Corruption . | . . . . . Corruption Purged . | . . . . . Corruption Blocked . | . . . . . Overload Shots . | . . . . . Overflow Damage 64 | . 64 . . . Projectiles . | . . . . . Explosions 64 | . 64 . . . Melee . | . . . . . Knockbacks . | . . . . . Impact . | . . . . . Kinetic . | . . . . . Secondary . | . . . . . Self-Inflicted Damage 220 | . 220 . . . Shots 5 | . 5 . . . Rammed . | . . . . . Targets Rammed . | . . . . . Kicked . | . . . . . Crushed . | . . . . . Highest Temperature 132 | . 132 . . 8 Average Temperature 39 | . 41 . . 4 Received Heat Transfer 360 | . 135 . . 225 Siege Activations . | . . . . . Robots Corrupted . | . . . . . Combat Hostiles . | . . . . . Parts Fried 7 | . 7 . . . Impact Corruptions . | . . . . . Robots Melted . | . . . . . Combat Hostiles . | . . . . . Parts Melted . | . . . . . Heat Transferred 650 | . 550 . . 100 Parts Sabotaged . | . . . . . Parts Stolen . | . . . . . Parts Stripped . | . . . . . Power Chain Reactions 4 | . 4 . . . Alert | -11 -10 -10 -10 -9 ------- Run | Yrd Mat Min Exi Min Peak Influence 179 | . 179 123 . 70 Initial 53 | . . 53 . . Average 53 | . 42 121 . 25 Maximum Alert Level 1 | . 1 . . . Low Security (%) 99 | 100 99 100 . 100 Level 1 . | . . . . . Level 2 . | . . . . . Level 3 . | . . . . . Level 4 . | . . . . . Level 5 . | . . . . . High Security . | . . . . . Max Security . | . . . . . Squads Dispatched 3 | . 3 . . . Investigation 3 | . 3 . . . Extermination . | . . . . . Reinforcement . | . . . . . Assault . | . . . . . Garrison . | . . . . . Intercept . | . . . . . Searches Triggered . | . . . . . Construction Impeded . | . . . . . Haulers Reinforced . | . . . . . Active Scanning Responses . | . . . . . Cargo Convoy Interrupts . | . . . . . Stealth | -11 -10 -10 -10 -9 --------- Run | Yrd Mat Min Exi Min Distress Signals 2 | . 2 . . . Communications Jammed . | . . . . . Distress Signals . | . . . . . Times Spotted 38 | . 27 3 . 8 Peak Tracking Total 5 | . 5 3 . 5 Tactical Retreats . | . . . . . Traps | -11 -10 -10 -10 -9 ------- Run | Yrd Mat Min Exi Min Traps Triggered 2 | . 2 . . . Indirectly . | . . . . . Trap Hack Attempts . | . . . . . Triggered . | . . . . . Disarmed . | . . . . . Reprogrammed . | . . . . . Reused . | . . . . . Traps Extracted . | . . . . . Installed . | . . . . . Triggered . | . . . . . Machines | -11 -10 -10 -10 -9 ---------- Run | Yrd Mat Min Exi Min Machines Disabled 2 | . 2 . . . Max in Single Turn 2 | . 2 . . . Machines Repaired . | . . . . . Machines Dismantled . | . . . . . Machines Sabotaged . | . . . . . Overloaded Fab Kills . | . . . . . Hacking | -11 -10 -10 -10 -9 --------- Run | Yrd Mat Min Exi Min Machines Accessed 6 | . 5 . 1 . Terminals 4 | . 4 . . . Fabricators . | . . . . . Repair Stations . | . . . . . Recycling Units 1 | . 1 . . . Scanalyzers . | . . . . . Garrison Access . | . . . . . Total Hacks 17 | . 16 . 1 . Successful 5 | . 4 . 1 . Failed 12 | . 12 . . . Catastrophic 8 | . 8 . . . Database Lockouts . | . . . . . Manual 5 | . 1 . 4 . Terminals 13 | . 13 . . . Fabricators . | . . . . . Repair Stations . | . . . . . Recycling Units 3 | . 3 . . . Scanalyzers . | . . . . . Garrison Access . | . . . . . Terminal Hacks 4 | . 3 . 1 . Record 1 | . . . 1 . Robot Analysis 1 | . 1 . . . Emergency Access Points 1 | . 1 . . . Scanalyzer Index 1 | . 1 . . . Fabricator Hacks . | . . . . . Repair Station Hacks . | . . . . . Recycling Unit Hacks 1 | . 1 . . . Retrieve Components 1 | . 1 . . . Scanalyzer . | . . . . . Garrison Access Hacks . | . . . . . Unauthorized Hacks . | . . . . . Terminals . | . . . . . Fabricators . | . . . . . Repair Stations . | . . . . . Recycling Units . | . . . . . Scanalyzers . | . . . . . Garrison Access . | . . . . . Data Cores Recovered . | . . . . . Used . | . . . . . Hacking Detections 5 | . 5 . . . Full Trace Events 3 | . 3 . . . Feedback Events . | . . . . . Feedback Blocked . | . . . . . Robot Schematics Acquired . | . . . . . Robots Built . | . . . . . Authchips . | . . . . . Time . | . . . . . Total Robot Build Rating . | . . . . . Part Schematics Acquired . | . . . . . Parts Built . | . . . . . Authchips . | . . . . . Time . | . . . . . Total Part Build Rating . | . . . . . Parts Repaired . | . . . . . Time . | . . . . . Parts Recycled . | . . . . . Recycled Matter . | . . . . . Retrieved Matter . | . . . . . Retrieved Components . | . . . . . Parts Scanalyzed . | . . . . . Part Schematics Acquired . | . . . . . Parts Damaged . | . . . . . Bothacking | -11 -10 -10 -10 -9 ------------ Run | Yrd Mat Min Exi Min Used RIF Installer . | . . . . . Robots Hacked . | . . . . . Non-combat . | . . . . . Combat . | . . . . . Robot Hacks Applied . | . . . . . Relay Couplers Released . | . . . . . Fabnet Peak Effective % . | . . . . . Robots Rewired . | . . . . . Allies Hacked . | . . . . . Hacks Repelled . | . . . . . Allies | -11 -10 -10 -10 -9 -------- Run | Yrd Mat Min Exi Min Total Allies . | . . . . . Largest Group . | . . . . . Highest-Rated Group . | . . . . . Highest-Rated Ally . | . . . . . Total Orders . | . . . . . Ally Attacks . | . . . . . Total Damage . | . . . . . Kills . | . . . . . Allies Corrupted . | . . . . . Allies Melted . | . . . . . Intel | -11 -10 -10 -10 -9 ------- Run | Yrd Mat Min Exi Min Robot Analysis Total 1 | . 1 . . . Derelict Logs Recovered . | . . . . . Drone Launches . | . . . . . Drone Recoveries . | . . . . . Exploration | -11 -10 -10 -10 -9 ------------- Run | Yrd Mat Min Exi Min Turns Passed 2058 | 97 1260 322 282 97 Spaces Moved 1233 | 57 653 251 257 15 Core 6 | 6 . . . . Treads 70 | 51 17 . . 2 Legs . | . . . . . Wheels 1157 | . 636 251 257 13 Hover . | . . . . . Flight . | . . . . . Fastest Speed 50 | 50 110 110 110 110 Average Speed 113 | 149 112 110 110 131 Slowest Speed 240 | 160 240 110 110 240 Overloaded Moves . | . . . . . Propulsion Burnouts . | . . . . . Robots Hopped . | . . . . . Cave-ins Triggered . | . . . . . Exploration Rate (%) 44 | 5 84 58 62 12 Regions Visited 4 Branch Regions 3 Pre-discovered Areas . | . . . . . Known Exits Taken . | . . . . . Unknown Exits Taken 4 | 1 1 1 1 . Scrap Searched 1 | . . 1 . . Spaces Dug . | . . . . . Terrain Destroyed 39 | . 39 . . . Melee . | . . . . . Projectile 1 | . 1 . . . AOE 38 | . 38 . . . Terrain Rammed . | . . . . . Walls Destroyed . | . . . . . Machines Disabled . | . . . . . Actions | -11 -10 -10 -10 -9 --------- Run | Yrd Mat Min Exi Min Total 1750 | 66 1088 289 256 51 Wait 372 | . 347 23 . 2 Move 1229 | 56 652 250 256 15 Hop . | . . . . . Pick Up 30 | 4 21 4 . 1 Fast Attach 11 | 6 4 . . 1 Attach 13 | . 4 2 . 7 Detach 3 | . 3 . . . Swap 7 | . 6 . . 1 Drop 11 | . 6 5 . . Fire 74 | . 45 5 . 24 Melee . | . . . . . Ram . | . . . . . Kick . | . . . . . Crush . | . . . . . Escape Stasis . | . . . . . Rewire . | . . . . . Trap . | . . . . . Miscellaneous . | . . . . . Route ------- -11/Scrapyard -10/Materials (discovered 3 exits: [*Mat] / [*Min x2]) -10/Mines (discovered 3 exits: [*Mat x2] / *Exi) -10/Exiles (discovered 2 exits: [*Min x2]) -9/Mines History --------- Turn | Location | Event 27 | -11/Scrapyard | Discovered new exit (range 15) 98 | -11/Scrapyard | Entered Materials 308 | -10/Materials | Build established: Mutant 592 | -10/Materials | Discovered new exit (range 11) 807 | -10/Materials | Discovered new exit (range 7) 1152 | -10/Materials | Discovered new exit (range 14) 1312 | -10/Materials | Core integrity fell below 50% 1358 | -10/Materials | Entered Mines 1380 | -10/Mines | Met a Derelict bent on vengeance 1440 | -10/Mines | Discovered new exit (range 3) 1503 | -10/Mines | Discovered new exit (range 13) 1578 | -10/Mines | Received a Rocket Launcher from a helpful Derelict 1589 | -10/Mines | Found a damaged Exp. Sensor Array with a note attached 1592 | -10/Mines | Found Prototype Device 1601 | -10/Mines | Identified Exp. Sensor Array 1674 | -10/Mines | Deemed a non-threat by the Exiles lab entrance 1676 | -10/Mines | Discovered new exit (range 5) 1680 | -10/Mines | Entered Exiles 1680 | -10/Exiles | Found Exiles lab abandoned 1699 | -10/Exiles | Discovered new exit (range 14) 1941 | -10/Exiles | Discovered new exit (range 11) 1962 | -10/Exiles | Entered Mines 2043 | -9/Mines | Core integrity fell below 20% 2059 | -9/Mines | Destroyed by S-10 Pest with Light Assault Rifle Last Messages --------------- 02022_ Lgt. Treads severed. 02024_ R-06 Scavenger collects Lgt. Treads. 02025_ Acquired Sml. Laser. 02027_ Assault Rifle destroyed. 02030_ C-30 ARC bursts open, deploying its payload. 02030_ S-10 Pest unfolds itself. 02032_ Lgt. Armor Plating severed. 02037_ Sml. Laser destroyed. 02039_ L-31 Rogue destroyed. 02039_ Switching to secondary target: G-34 Mercenary. 02049_ Acquired Lgt. Armor Plating. 02049_ K-01 Serf collects debris. 02049_ R-06 Scavenger collects Core Shielding. 02052_ R-06 Scavenger collects Imp. Heat Sink. 02053_ S-10 Pest destroyed. 02053_ Switching to secondary target: G-34 Mercenary. 02053_ K-01 Serf collects debris. Map ----- +----------------------------------------------------+ | ???????????????????????????????????????????? | | ???????????????????????????????????????????? | | ???????????????????????????????????????????? | | ???????????????????????????????????????????? | | ???????????????????????????????????????????? | | ???????????????????????????????????????????? | | ????????????????????????????? ?????????????? | | ???????????????????????????? #?????????????? | | ??????????????????????????? #?????????????? | | ?????????????????????????? ??????????????? | | ?????????????????????????? ??????????????? | | ?????????????????????????? ???????????????? | | ????????????????????????? #?????#?????????? | | ?????????????###????????? #???? #?????????? | | ?????????##### #???????# #???? #?????????? | | ???????? #?????# #??? #?????????? | | ?????????? ##?## ##?? ####??????? | | ?????????????# ## ### # #??????? | | ??????????????# #?????? | | ???????????????# #?????? | | ???????????????# ## #??????? | | ???????????????## ##?# ##????????? | | ????????????????## ##??# ????????????? | | ?????????????????# ##??# *#?????????????? | | ?????????????????# ####%s#?????????????? | | ?????????????????## g!@s% #?????????????? | | ??????????????????## #####=k ??????? | | ???????????????????####???# ??? | | ??????????????????????????## #### ??? | | ???????????????????????????? ##???????#?? | | ???????????????????????????? #??????????? | | ???????????????????????????? #?????????? | | ???????????????????????????? #????????? | | ???????????????????????????? #???????? | | ????????????????????????????? ???????? | | ????????????????????????????? ??????? | | ????????????????????????????? # ?????? | | ????????????????????????????? ######??????? | | ????????????????????????????? ##???????????? | | ??????????????????????????????#????????????? | | ???????????????????????????????????????????? | | ???????????????????????????????????????????? | | ???????????????????????????????????????????? | | ???????????????????????????????????????????? | | ???????????????????????????????????????????? | | ???????????????????????????????????????????? | | ???????????????????????????????????????????? | | ???????????????????????????????????????????? | | ???????????????????????????????????????????? | | ???????????????????????????????????????????? | +----------------------------------------------------+ Best States ------------- Heat Dissipation 25 Energy Generation 10 Energy Capacity 250 Matter Stores 300 Matter Capacity 300 Sight Range 16 Terrain Scan Density 10 Armor Coverage 150 Evasion (%) 40 Recoil Reduction 2 Item Schematics ----------------- None Robot Schematics ------------------ None Fabricated ------------ Nothing Alien Tech Used ----------------- None Achievements -------------- None Challenges ------------ None Game ------ Seed SubdwellerShrapnelBarrier Manual? 0 Play Time 00:15:22 Cumulative 9.1 hours Start 2024.04.18 @ 10:32:44 End 2024.04.18 @ 10:47:05 Sessions 1 Manual Loads 0 Difficulty Rogue Special Mode None Game No. 19 Rogue 19 Adventurer 0 Explorer 0 Win Type - Total 0 Types 0/0/0/0/0/0/0/0/0 Lore% 5 Gallery% 15 Achievement% 15 Wizard Run 0 Options --------- Layout 1 ASCII 0 Keyboard 0 Movement Mouse Keybinds 0 Fullscreen 1 Font 24/Terminus Map View 50x35 Zoom Use 0% Tactical HUD 1 Map Filters NONE Filters NONE Steam 1 RUN: be50c834-b0ae-4c67-afc4-f734f03465b4